fUSD/lending_fUSD_20251231
["ID","MTS","AMOUNT","RATE_DAILY","PERIOD"]
[400140859,1767149432626,-500.0,0.00015643,2]
[400140860,1767149432635,-500.0,0.00015643,2]
[400140861,1767149432645,-223.08662767,0.00015643,2]
[400140862,1767149432658,-276.91337233,0.00015643,2]
[400140863,1767149432668,-500.0,0.00015643,2]
[400140864,1767149432678,-500.0,0.00015643,2]
[400140865,1767149432688,-500.0,0.00015643,2]
[400140866,1767149432699,-500.0,0.00015643,2]
[400140867,1767149432708,-500.0,0.00015643,2]
[400140868,1767149432718,-196.47736656,0.00015643,2]
[400140887,1767149438093,-303.52263344,0.00015643,2]
[400140889,1767149438104,-500.0,0.00015643,2]
[400140891,1767149438115,-500.0,0.00015643,2]
[400140893,1767149438125,-383.00842099,0.00015643,2]
[400140894,1767149438135,-500.0,0.00015643,2]
[400140895,1767149438146,-500.0,0.00015643,2]
[400140896,1767149438157,-500.0,0.00015643,2]
[400140897,1767149438167,-500.0,0.00015643,2]
[400140898,1767149438178,-500.0,0.00015643,2]
[400140899,1767149438188,-500.0,0.00015643,2]
[400140900,1767149438199,-500.0,0.00015643,2]
[400140901,1767149438209,-500.0,0.00015643,2]
[400140902,1767149438219,-500.0,0.00015643,2]
[400140903,1767149438229,-500.0,0.00015643,2]
[400140904,1767149438240,-500.0,0.00015643,2]
[400140905,1767149438251,-500.0,0.00015643,2]
[400140906,1767149438263,-500.0,0.00015643,2]
[400140907,1767149438276,-500.0,0.00015643,2]
[400140908,1767149438290,-500.0,0.00015643,2]
[400140909,1767149438300,-500.0,0.00015643,2]
[400140910,1767149438311,-500.0,0.00015643,2]
[400140911,1767149438321,-500.0,0.00015643,2]
[400140912,1767149438331,-326.74341764,0.00015643,2]
[400140913,1767149438344,-173.25658236,0.00015643,2]
[400140914,1767149438354,-500.0,0.00015643,2]
[400140916,1767149438364,-500.0,0.00015643,2]
[400140918,1767149438375,-500.0,0.00015643,2]
[400140920,1767149438384,-500.0,0.00015643,2]
[400140922,1767149438394,-500.0,0.00015643,2]
[400140924,1767149438403,-500.0,0.00015643,2]
[400140926,1767149438413,-500.0,0.00015643,2]
[400140928,1767149438424,-404.32216056,0.00015643,2]
[400140930,1767149438435,-95.67783944,0.00015643,2]
[400140932,1767149438445,-500.0,0.00015643,2]
[400140933,1767149438455,-354.05293432,0.00015643,2]
[400141108,1767149440238,-145.94706568,0.00015643,2]
[400141110,1767149440248,-320.31324922,0.00015643,2]
[400141473,1767149443846,-496.25906868,0.00015553,2]
[400141476,1767149443858,-179.68675078,0.00015643,2]
[400141478,1767149443869,-41.04814392,0.00015643,2]
[400141480,1767149443883,-458.95185608,0.00015643,2]
[400141483,1767149443895,-500.0,0.00015643,2]
[400141485,1767149443906,-500.0,0.00015643,2]
[400141487,1767149443918,-500.0,0.00015643,2]
[400141490,1767149443930,-350.0,0.00015643,2]
[400141492,1767149443944,-164.11931446,0.00015643,2]
[400141708,1767149446109,-335.88068554,0.00015643,2]
[400141709,1767149446120,-500.0,0.00015643,2]
[400141710,1767149446130,-500.0,0.00015643,2]
[400141711,1767149446142,-500.0,0.00015643,2]
[400141712,1767149446153,-500.0,0.00015643,2]
[400141713,1767149446164,-500.0,0.00015643,2]
[400141714,1767149446175,-500.0,0.00015643,2]
[400141715,1767149446186,-500.0,0.00015643,2]
[400141717,1767149446197,-500.0,0.00015643,2]
[400141718,1767149446207,-500.0,0.00015643,2]
[400141721,1767149446219,-500.0,0.00015643,2]
[400141723,1767149446230,-500.0,0.00015643,2]
[400141725,1767149446241,-500.0,0.00015643,2]
[400141727,1767149446253,-500.0,0.00015643,2]
[400141729,1767149446265,-500.0,0.00015643,2]
[400141731,1767149446276,-375.60467229,0.00015643,2]
[400141734,1767149446287,-500.0,0.00015643,2]
[400141736,1767149446299,-500.0,0.00015643,2]
[400141738,1767149446310,-500.0,0.00015643,2]
[400141740,1767149446320,-500.0,0.00015643,2]
[400141743,1767149446331,-2092.91906356,0.00015644,2]
[400141746,1767149446350,-6970.38909087,0.00015644,2]
[400141748,1767149446367,-5854.06142,0.00015644,2]
[400141751,1767149446383,-2385.89999568,0.00015644,2]
[400141753,1767149446395,-1329.061134,0.00015644,2]
[400142673,1767150019301,-213.60054963,0.00014191,2]
[400142674,1767150109306,-53.39945037,0.00014191,2]
[400142675,1767150109564,-137.60411599,0.00014191,2]
[400142676,1767150110846,-29.05588401,0.00014191,2]
[400142677,1767150110881,-166.66,0.0001449,2]
[400142678,1767150110910,-152.89239235,0.00014789,2]
[400142682,1767150154351,-171.52941078,0.00014721,3]
[400142683,1767150156371,-343.0347923,0.00014721,3]
[400142684,1767150157986,-161.69675482,0.00014721,3]
[400142685,1767150159485,-153.76809205,0.00014721,3]
[400142686,1767150162123,-168.97095005,0.00014721,3]
[400142687,1767150162148,-13.50026189,0.00014789,2]
[400142689,1767150274997,-163.57952881,0.00014746,2]
[400142693,1767150405553,151.69,7.332e-05,2]
[400142694,1767150405793,151.69,7.763e-05,2]
[400142695,1767150405999,151.69,8.195e-05,2]
[400142696,1767150406202,151.69,8.626e-05,2]
[400142697,1767150406412,151.69,9.057e-05,2]
[400142698,1767150406644,151.69,9.488e-05,2]
[400142699,1767150406852,151.69,9.92e-05,2]
[400142700,1767150407084,151.69,0.00010351,2]
[400142701,1767150407281,151.69,0.00010782,2]
[400142702,1767150407474,151.69,0.00011214,2]
[400142703,1767150407697,151.69,0.00011645,2]
[400142704,1767150407927,151.69,0.00012076,2]
[400142705,1767150408330,151.69,0.00012507,2]
[400142706,1767150408540,151.69,0.00012939,2]
[400142707,1767150408756,151.69,0.0001337,2]
[400142708,1767150424363,-151.69,0.00013801,2]
[400142709,1767150424387,-117.50244789,0.00014233,2]
[400142775,1767150619845,-34.18755211,0.00014233,2]
[400142776,1767150619870,-201.15117636,0.00014233,2]
[400142777,1767150632222,-66.84882364,0.00014233,2]
[400142778,1767150632232,-200.0,0.00014571,2]
[400142779,1767150632242,-151.69,0.00014664,2]
[400142780,1767150632252,-200.81550949,0.00014746,2]
[400142781,1767150632278,-925.7949617,0.00014746,2]
[400142782,1767150632289,-0.26734576,0.00014789,2]
[400142783,1767150632298,-68.81945495,0.00014993,2]
[400142784,1767150632310,-430.99937805,0.00014993,2]
[400142785,1767150632324,-86.52650139,0.00015069,2]
[400142786,1767150632336,-913.47349861,0.00015069,2]
[400142787,1767150632345,-166.66,0.00015088,2]
[400142788,1767150632355,-481.83,0.000151,2]
[400142789,1767150632365,-171.55,0.000151,2]
[400142790,1767150632375,-171.03,0.000151,2]
[400142791,1767150632387,-300.0,0.0001518,2]
[400142792,1767150632397,-176.58911938,0.0001518,2]
[400142793,1767150632409,-123.41088062,0.0001518,2]
[400142794,1767150632419,-1200.0,0.0001518,2]
[400142795,1767150632429,-300.0,0.00015181,2]
[400142796,1767150632439,-631.5822453,0.00015181,2]
[400142797,1767150632471,-675.32081606,0.00015181,2]
[400142798,1767150632482,-286.98,0.00015181,2]
[400142799,1767150632495,-906.11693864,0.00015181,2]
[400142800,1767150632504,-300.0,0.00015199,2]
[400142801,1767150632514,-481.83,0.000152,2]
[400142802,1767150632527,-481.83,0.000152,2]
[400142803,1767150632537,-163.07452148,0.000152,2]
[400142804,1767150632549,-318.75547852,0.000152,2]
[400142805,1767150632559,-481.58,0.000152,2]
[400142806,1767150632569,-31.8930896,0.00015278,2]
[400142807,1767150632581,-139.1369104,0.00015278,2]
[400142808,1767150632591,-171.03,0.00015278,2]
[400142809,1767150632602,-178.74,0.0001537,2]
[400142811,1767150632612,-465.64,0.0001537,2]
[400142812,1767150632623,-178.74,0.0001537,2]
[400142813,1767150632636,-465.64,0.0001537,2]
[400142814,1767150632646,-178.74,0.0001537,2]
[400142815,1767150632656,-464.26,0.0001537,2]
[400142817,1767150632666,-184.66,0.0001537,2]
[400142818,1767150632677,-178.74,0.0001537,2]
[400142819,1767150632687,-171.03,0.0001537,2]
[400142820,1767150632698,-465.64,0.0001537,2]
[400142821,1767150632710,-178.26,0.0001537,2]
[400142822,1767150632720,-465.64,0.0001537,2]
[400142823,1767150632731,-178.74,0.0001537,2]
[400142824,1767150632741,-465.64,0.0001537,2]
[400142825,1767150632752,-178.74,0.0001537,2]
[400142826,1767150632762,-432.85829465,0.0001537,2]
[400142827,1767150632774,-32.78170535,0.0001537,2]
[400142828,1767150632784,-166.66,0.00015386,2]
[400142829,1767150632794,-257.8886,0.00015435,2]
[400142830,1767150632803,-83.93953025,0.00015443,2]
[400142831,1767150632815,-132.23435866,0.00015443,2]
[400142832,1767150632825,-195.33977356,0.00015443,2]
[400142833,1767150632835,-591.67792141,0.00015444,2]
[400142834,1767150632845,-536.47473728,0.00015444,2]
[400142835,1767150632855,-166.66,0.00015489,2]
[400142836,1767150632865,-300.0,0.00015533,2]
[400142837,1767150632875,-200.5323999,0.00015534,2]
[400142838,1767150632885,-316.56500257,0.00015534,2]
[400142839,1767150632894,-500.0,0.00015534,2]
[400142840,1767150632903,-500.0,0.00015534,2]
[400142841,1767150632925,-500.0,0.00015534,2]
[400142842,1767150632937,-500.0,0.00015534,2]
[400142843,1767150632947,-366.53781708,0.00015534,2]
[400142844,1767150632957,-500.0,0.00015534,2]
[400142845,1767150632967,-282.50696961,0.00015534,2]
[400142846,1767150632977,-500.0,0.00015534,2]
[400142847,1767150632987,-543.67191821,0.00015534,2]
[400142848,1767150632997,-500.0,0.00015534,2]
[400142849,1767150633007,-500.0,0.00015534,2]
[400142850,1767150633018,-475.60467229,0.00015534,2]
[400142851,1767150633028,-152.43012698,0.00015534,2]
[400142852,1767150633038,-505.01898847,0.00015534,2]
[400142853,1767150633048,-590.32703307,0.00015534,2]
[400142854,1767150633058,-500.0,0.00015534,2]
[400142855,1767150633068,-500.0,0.00015534,2]
[400142856,1767150633078,-500.0,0.00015534,2]
[400142857,1767150633088,-500.0,0.00015534,2]
[400142858,1767150633098,-500.0,0.00015534,2]
[400142859,1767150633108,-681.43055394,0.00015534,2]
[400142860,1767150633118,-322.6107,0.00015535,2]
[400142861,1767150633128,-80788.32492958,0.00015535,2]
[400142862,1767150633141,-62420.7904337,0.00015535,2]
[400142863,1767150633153,-88900.88902503,0.00015535,2]
[400142865,1767150638340,-915.7389432,0.00015535,2]
[400142866,1767150638352,-1925.38786147,0.00015535,2]
[400142867,1767150638364,-7297.19800026,0.00015535,2]
[400142868,1767150638376,-364.04984042,0.00015535,2]
[400142869,1767150638388,-1661.564946,0.00015535,2]
[400142870,1767150638399,-17677.09677124,0.00015535,2]
[400142871,1767150638416,-9029.21082737,0.00015535,2]
[400142872,1767150638428,-1510.0,0.00015535,2]
[400142873,1767150638440,-381.27822225,0.00015535,2]
[400142874,1767150638452,-378.17299764,0.00015535,2]
[400142875,1767150638464,-875.29292091,0.00015535,2]
[400142876,1767150638476,-4707.47864378,0.00015535,2]
[400142877,1767150638504,-4516.78539756,0.00015535,2]
[400142878,1767150638515,-388.82700236,0.00015535,2]
[400142879,1767150638528,-802.0,0.00015535,2]
[400143046,1767150640353,-2050.77884625,0.00015535,2]
[400143059,1767150640462,-2673.83420814,0.00015535,2]
[400143061,1767150640473,-723.72753373,0.00015535,2]
[400143063,1767150640485,-890.978,0.00015535,2]
[400143067,1767150640516,-693.79423372,0.00015535,2]
[400143070,1767150640527,-6865.63692011,0.00015535,2]
[400143103,1767150640837,-2469.01746002,0.00015535,2]
[400143437,1767150644100,-3872.15211191,0.00015535,2]
[400143439,1767150644113,-1233.02197146,0.00015535,2]
[400143444,1767150644154,-3583.24167825,0.00015535,2]
[400143447,1767150644166,-2343.68669856,0.00015535,2]
[400143458,1767150644263,-319.91644119,0.00015535,2]
[400143673,1767150646432,-4398.76117269,0.00015535,2]
[400143675,1767150646445,-2358.90891441,0.00015535,2]
[400143680,1767150646486,-2224.75,0.00015535,2]
[400143683,1767150646498,-793.5886617,0.00015535,2]
[400143889,1767150744404,-422.973,0.00015224,2]
[400143890,1767150744426,-300.0,0.00015434,2]
[400143891,1767150744451,-3837.3987,0.00015435,2]
[400143892,1767150744472,-189.1699,0.00015435,2]
[400143893,1767150744493,-2500.0,0.00015435,2]
[400143894,1767150744515,-217.77578197,0.00015444,2]
[400143895,1767150796929,157.51774079,0.00015361,2]
[400143896,1767150797003,150.0,0.00015361,2]
[400143897,1767150797227,150.0,0.00015416,2]
[400143898,1767150797359,150.0,0.00015361,2]
[400143899,1767150798192,167.59346915,0.00015361,2]
[400143900,1767150839535,2500.0,0.00015435,2]
[400143915,1767150849060,194.55650001,0.00015435,2]
[400143928,1767150882158,336.7499,0.00015435,2]
[400143942,1767150899760,195.09263476,0.00015426,2]
[400143950,1767150905819,195.09263474,0.0001543,2]
[400143951,1767150911706,195.09263474,0.00015434,2]
[400143955,1767150936348,500.0,0.00014842,2]
[400144018,1767150990039,2500.0,0.00015435,2]
[400144020,1767150996625,602.89998022,0.00015435,2]
[400144022,1767151014037,159.87,0.00014847,2]
[400144045,1767151115877,1047.0,0.000155,7]
[400144046,1767151119012,2500.0,0.00015435,2]
[400144073,1767151233072,831.21712362,0.00014915,2]
[400144081,1767151475153,-246.82755494,0.00014596,2]
[400144082,1767151476642,-591.29135752,0.00014596,2]
[400144090,1767151608271,4034.18744074,0.00013443,2]
[400144257,1767151831347,-200.0,0.00014523,2]
[400144259,1767151831357,-195.0,0.00014531,2]
[400144261,1767151831367,-300.0,0.0001454,2]
[400144263,1767151831378,-364.66710832,0.00014558,2]
[400144264,1767151831388,-151.0,0.00014593,2]
[400144265,1767151831398,-91.33289168,0.00014594,2]
[400144266,1767151831413,-1108.66710832,0.00014594,2]
[400144267,1767151831422,-300.0,0.00014594,2]
[400144268,1767151831432,-1200.0,0.00014595,2]
[400144269,1767151831441,-150.0,0.00014595,2]
[400144270,1767151831451,-748.4394147,0.00014596,2]
[400144271,1767151831466,-999.0,0.00014596,2]
[400144272,1767151831478,-76456.35167284,0.00014596,2]
[400144273,1767151831488,-1815.9,0.00014695,2]
[400144274,1767151831498,-12035.64287638,0.00014915,2]
[400144275,1767151831507,-338.379,0.00015123,2]
[400144276,1767151831522,-150.0,0.00015288,2]
[400144277,1767151831531,-150.0,0.00015288,2]
[400144278,1767151831541,-269.19244789,0.00015288,2]
[400144279,1767151831551,-150.0,0.00015288,2]
[400144280,1767151831561,-150.0,0.00015288,2]
[400144281,1767151831570,-178.74,0.000153,2]
[400144282,1767151831580,-171.03,0.000153,2]
[400144283,1767151831589,-465.64,0.000153,2]
[400144284,1767151831599,-178.74,0.000153,2]
[400144285,1767151831609,-171.03,0.000153,2]
[400144286,1767151831619,-465.64,0.000153,2]
[400144287,1767151831630,-178.74,0.000153,2]
[400144288,1767151831640,-465.64,0.000153,2]
[400144289,1767151831650,-171.03,0.000153,2]
[400144290,1767151831660,-745.9216,0.00015332,2]
[400144292,1767151831670,-713.30821692,0.00015335,2]
[400144294,1767151831679,-542.60998218,0.00015335,2]
[400144296,1767151831689,-171.03,0.0001537,2]
[400144298,1767151831699,-300.0,0.0001537,2]
[400144299,1767151831708,-171.03,0.000154,2]
[400144300,1767151831718,-150.0,0.000154,2]
[400144301,1767151831728,-171.03,0.000154,2]
[400144302,1767151831737,-178.74,0.000154,2]
[400144303,1767151831746,-171.03,0.000154,2]
[400144304,1767151831756,-463.8,0.000154,2]
[400144305,1767151831765,-171.03,0.000154,2]
[400144306,1767151831774,-930.56,0.000154,2]
[400144307,1767151831785,-178.74,0.000154,2]
[400144308,1767151831796,-171.03,0.000154,2]
[400144309,1767151831806,-178.74,0.000154,2]
[400144310,1767151831815,-178.74,0.000154,2]
[400144311,1767151831825,-171.03,0.000154,2]
[400144312,1767151831835,-158.68,0.000154,2]
[400144313,1767151831844,-171.03,0.000154,2]
[400144314,1767151831853,-171.03,0.000154,2]
[400144315,1767151831864,-357.24,0.000154,2]
[400144316,1767151831873,-682.29,0.000154,2]
[400144317,1767151831887,-151.0,0.0001542,2]
[400144318,1767151831897,-614.06,0.00015422,3]
[400144319,1767151831906,-322.6107,0.00015423,2]
[400144320,1767151831916,-500.0,0.00015423,2]
[400144321,1767151831925,-500.0,0.00015423,2]
[400144322,1767151831935,-500.0,0.00015423,2]
[400144323,1767151831945,-500.0,0.00015423,2]
[400144324,1767151831955,-500.0,0.00015423,2]
[400144325,1767151831964,-500.0,0.00015423,2]
[400144326,1767151831974,-344.78851565,0.00015423,2]
[400144327,1767151831984,-500.0,0.00015423,2]
[400144328,1767151831993,-500.0,0.00015423,2]
[400144329,1767151832003,-500.0,0.00015423,2]
[400144330,1767151832012,-500.0,0.00015423,2]
[400144331,1767151832023,-500.0,0.00015423,2]
[400144332,1767151832033,-500.0,0.00015423,2]
[400144333,1767151832044,-500.0,0.00015423,2]
[400144334,1767151832054,-500.0,0.00015423,2]
[400144335,1767151832063,-151.0,0.00015423,2]
[400144336,1767151832076,-500.0,0.00015423,2]
[400144337,1767151832087,-500.0,0.00015423,2]
[400144338,1767151832097,-151.0,0.00015423,2]
[400144339,1767151832107,-151.0,0.00015423,2]
[400144340,1767151832118,-500.0,0.00015423,2]
[400144341,1767151832128,-151.0,0.00015423,2]
[400144342,1767151832138,-151.0,0.00015423,2]
[400144343,1767151832148,-151.0,0.00015423,2]
[400144344,1767151832158,-151.0,0.00015423,2]
[400144345,1767151832169,-151.0,0.00015423,2]
[400144346,1767151832182,-151.0,0.00015423,2]
[400144347,1767151832192,-151.0,0.00015423,2]
[400144348,1767151832202,-151.0,0.00015423,2]
[400144349,1767151832211,-151.0,0.00015423,2]
[400144350,1767151832221,-151.0,0.00015423,2]
[400144351,1767151832231,-151.0,0.00015423,2]
[400144352,1767151832241,-151.0,0.00015423,2]
[400144353,1767151832251,-151.0,0.00015423,2]
[400144354,1767151832260,-151.0,0.00015423,2]
[400144355,1767151832270,-151.0,0.00015423,2]
[400144357,1767151832279,-151.0,0.00015423,2]
[400144358,1767151832289,-151.0,0.00015423,2]
[400144360,1767151832299,-151.0,0.00015423,2]
[400144361,1767151832309,-151.0,0.00015423,2]
[400144362,1767151832318,-151.0,0.00015423,2]
[400144363,1767151832328,-151.0,0.00015423,2]
[400144364,1767151832338,-151.0,0.00015423,2]
[400144365,1767151832348,-151.0,0.00015423,2]
[400144366,1767151832358,-153.87469882,0.00015423,2]
[400144367,1767151832368,-500.0,0.00015431,2]
[400144368,1767151832377,-197.75487872,0.00015431,2]
[400144369,1767151832387,-438.27053409,0.00015431,2]
[400144370,1767151832397,-280.59220669,0.00015431,2]
[400144371,1767151832407,-163.9560747,0.00015431,2]
[400144372,1767151832418,-189.66162235,0.00015431,2]
[400144373,1767151832429,-500.0,0.00015431,2]
[400144374,1767151832438,-500.0,0.00015431,2]
[400144375,1767151832447,-381.42300219,0.00015431,2]
[400144376,1767151832468,-500.0,0.00015431,2]
[400144377,1767151832481,-613.64834502,0.00015431,2]
[400144378,1767151832491,-500.0,0.00015431,2]
[400144379,1767151832501,-500.0,0.00015431,2]
[400144380,1767151832511,-500.0,0.00015431,2]
[400144381,1767151832521,-500.0,0.00015431,2]
[400144382,1767151832531,-500.0,0.00015431,2]
[400144383,1767151832541,-500.0,0.00015431,2]
[400144384,1767151832551,-77.25346535,0.00015431,2]
[400144385,1767151832566,-120.67340957,0.00015431,2]
[400144386,1767151832576,-500.0,0.00015431,2]
[400144387,1767151832586,-147.92566298,0.00015431,2]
[400144388,1767151832598,-352.07433702,0.00015431,2]
[400144389,1767151832608,-500.0,0.00015431,2]
[400144390,1767151832618,-500.0,0.00015431,2]
[400144391,1767151832628,-500.0,0.00015431,2]
[400144392,1767151832638,-75.60360669,0.00015431,2]
[400144393,1767151832649,-424.39639331,0.00015431,2]
[400144394,1767151832659,-460.88151093,0.00015431,2]
[400144398,1767151837441,-39.11848907,0.00015431,2]
[400144400,1767151837451,-524.83003945,0.00015432,2]
[400144403,1767151837463,-379.29866928,0.00015432,2]
[400144405,1767151837475,-312618.59183053,0.00015432,2]
[400144406,1767151837486,-10869.68645824,0.00015432,2]
[400144407,1767151837498,-11905.3547574,0.00015432,2]
[400144408,1767151837601,-100089.07158745,0.00015432,2]
[400144409,1767151837613,-348.01441186,0.00015432,2]
[400144585,1767151839546,-394.07870975,0.00015432,2]
[400144587,1767151839558,-842.87070736,0.00015432,2]
[400144596,1767151839630,-374.10410906,0.00015432,2]
[400144599,1767151839646,-497.12974831,0.00015432,2]
[400144635,1767151839975,-840.8243908,0.00015432,2]
[400144637,1767151839987,-1662.18612278,0.00015432,2]
[400144639,1767151839999,-4264.09911204,0.00015432,2]
[400144667,1767151840264,-1.7e-07,0.00015432,2]
[400144951,1767151843169,-442.02245284,0.00015432,2]
[400145038,1767151844005,-660.35,0.000154,2]
[400145040,1767151844015,-553947.83689268,0.00015432,2]
[400145042,1767151844025,-19344.7832,0.00015435,2]
[400145044,1767151844035,-1000.0,0.00015435,2]
[400145046,1767151844045,-150.0,0.00015452,2]
[400145049,1767151844055,-150.0,0.00015452,2]
[400145051,1767151844066,-150.0,0.00015452,2]
[400145053,1767151844075,-414.0,0.000155,2]
[400145055,1767151844085,-150.0,0.000155,2]
[400145057,1767151844095,-171.03,0.000155,2]
[400145059,1767151844106,-171.03,0.000155,2]
[400145061,1767151844115,-171.03,0.000155,2]
[400145063,1767151844126,-150.0,0.000155,2]
[400145065,1767151844135,-542.60998215,0.00015509,2]
[400145067,1767151844144,-206.33,0.00015526,2]
[400145069,1767151844154,-33449.43705509,0.00015532,2]
[400145071,1767151844166,-3097.42625213,0.00015532,2]
[400145186,1767151845445,-1329.6861685,0.00015532,2]
[400145188,1767151845458,-6217.96,0.00015532,2]
[400145193,1767151845502,-546.44198966,0.00015532,2]
[400145476,1767152148750,-1000.0,0.00014693,2]
[400145477,1767152150673,-732.70662953,0.00014715,2]
[400145482,1767152152305,-436.78428078,0.00014715,2]
[400145483,1767152155265,1427.59286688,0.00014664,2]
[400145484,1767152157313,-198.6103345,0.00014715,2]
[400145485,1767152159848,-166.66,0.00014715,2]
[400145486,1767152162200,150.0,0.00014714,2]
[400145488,1767152162507,-200.0,0.00014715,2]
[400145490,1767152165456,-382.94071773,0.00014715,2]
[400145492,1767152167993,-300.0,0.00014715,2]
[400145493,1767152171183,-317.05928227,0.00014715,2]
[400145495,1767152174150,3324.3,0.00014694,2]
[400145496,1767152174527,-166.66,0.00014715,2]
[400145498,1767152178137,475.53881128,0.00014664,2]
[400145516,1767152330014,-189.02492322,0.00014664,2]
[400145600,1767152599388,-221.92360409,0.0001409,2]
[400145648,1767152602757,-192.75356912,0.0001409,2]
[400145655,1767152605988,-229.22521654,0.0001409,2]
[400145659,1767152644344,-315.51067724,0.00014019,2]
[400145660,1767152645910,-166.33236124,0.00014019,2]
[400145661,1767152648012,-305.4077139,0.00014019,2]
[400145662,1767152650132,-201.371709,0.00014019,2]
[400145663,1767152653235,-188.83753862,0.00014019,2]
[400145664,1767152653261,-64.69761025,0.0001409,2]
[400145665,1767152653284,-48.19018283,0.00014302,2]
[400145686,1767152749379,-185.69,0.00014047,2]
[400145687,1767152749406,-164.6464563,0.00014302,2]
[400145692,1767152779428,-671.52377087,0.00013699,2]
[400145706,1767152839301,-3.58622913,0.00013699,2]
[400145707,1767152839326,-195.0,0.00014,2]
[400145708,1767152839349,-6.33513067,0.00014,2]
[400145709,1767152841933,-196.31686895,0.00014,2]
[400145710,1767152843967,-97.34800038,0.00014,2]
[400145711,1767152844228,-63.51971376,0.00014302,2]
[400145748,1767152980532,314.82,6.98e-05,2]
[400145749,1767152980719,314.82,7.347e-05,2]
[400145750,1767152980916,314.82,7.715e-05,2]
[400145751,1767152981322,314.82,8.082e-05,2]
[400145752,1767152981538,314.82,8.449e-05,2]
[400145753,1767152981750,314.82,8.817e-05,2]
[400145754,1767152981990,314.82,9.184e-05,2]
[400145755,1767152982587,314.82,9.552e-05,2]
[400145756,1767152982633,314.82,9.919e-05,2]
[400145757,1767152983011,314.82,0.00010286,2]
[400145758,1767152983244,314.82,0.00010654,2]
[400145759,1767152983443,314.82,0.00011021,2]
[400145760,1767152983640,314.82,0.00011388,2]
[400145761,1767152983890,314.82,0.00011756,2]
[400145762,1767152984102,314.82,0.00012123,2]
[400145763,1767152984304,314.82,0.0001249,2]
[400145764,1767152984506,314.82,0.00012858,2]
[400145765,1767152984919,314.82,0.00013225,2]
[400145766,1767152989987,-314.82,0.00013593,2]
[400145767,1767152990010,-314.82,0.0001396,2]
[400145768,1767152990033,-20.51037905,0.00014326,2]
[400145769,1767153031536,-229.48962095,0.00014326,2]
[400145770,1767153031547,-168.10509975,0.00014349,2]
[400145771,1767153031589,-131.89490025,0.00014349,2]
[400145772,1767153031599,-188.63728131,0.00014514,2]
[400145773,1767153031611,-0.38764191,0.00014514,2]
[400145774,1767153031621,-1020.15284003,0.00014613,2]
[400145775,1767153031634,-179.84715997,0.00014613,2]
[400145776,1767153031644,-832.61926954,0.00014614,2]
[400145777,1767153031657,-367.38073046,0.00014614,2]
[400145778,1767153031667,-300.0,0.00014614,2]
[400145779,1767153031677,-300.0,0.00014614,2]
[400145780,1767153031687,-2500.0,0.00014615,2]
[400145781,1767153031697,-1865.59794878,0.00014664,2]
[400145782,1767153031719,-431.8048342,0.00014664,2]
[400145783,1767153031729,-157.95723247,0.00014664,2]
[400145784,1767153031753,-1237.26577888,0.00014664,2]
[400145785,1767153031763,-173.26440016,0.00014664,2]
[400145786,1767153031773,-869.29454597,0.00014669,2]
[400145787,1767153031783,-150.0,0.00014705,2]
[400145788,1767153031793,-200.0,0.00014706,2]
[400145789,1767153031803,-200.0,0.00014706,2]
[400145791,1767153031813,-500.0,0.00014706,2]
[400145793,1767153031822,-500.0,0.00014706,2]